bitfinex-derivatives/quotes_BTCF0:USTF0_20250505
["timestamp","ask_amount","ask_price","bid_price","bid_amount"]
[1746431285784,0.2706756,94749.0,94748.0,0.2503748]
[1746431285983,0.2706756,94749.0,94748.0,0.2463748]
[1746431286185,0.37621816,94749.0,94748.0,0.2463748]
[1746431286685,0.38415172,94749.0,94748.0,0.2433748]
[1746431286986,0.48415172,94749.0,94748.0,0.2433748]
[1746431287186,0.60415172,94749.0,94748.0,0.2433748]
[1746431290783,0.50415172,94749.0,94748.0,0.2433748]
[1746431290986,0.29807612,94749.0,94748.0,0.2433748]
[1746431291986,0.39807612,94749.0,94748.0,0.2433748]
[1746431292187,0.27807612,94749.0,94748.0,0.2433748]
[1746431292788,0.48914952,94749.0,94748.0,0.2433748]
[1746431296183,0.48914952,94749.0,94748.0,0.001]
[1746431296481,0.53914952,94749.0,94748.0,0.001]
[1746431297090,0.65914952,94749.0,94748.0,0.001]
[1746431297286,0.65914952,94749.0,94748.0,0.2120756]
[1746431298792,0.65914952,94749.0,94748.0,0.2430756]
[1746431300897,0.60914952,94749.0,94748.0,0.2430756]
[1746431303192,0.48914952,94749.0,94748.0,0.2430756]
[1746431304092,0.60914952,94749.0,94748.0,0.2430756]
[1746431305197,0.48914952,94749.0,94748.0,0.2430756]
[1746431309897,0.84994952,94749.0,94748.0,0.2430756]
[1746431310294,0.48914952,94749.0,94748.0,0.2430756]
[1746431310595,0.84994952,94749.0,94748.0,0.2430756]
[1746431310795,0.84994952,94749.0,94748.0,0.2740756]
[1746431315101,0.91578952,94749.0,94748.0,0.2740756]
[1746431326110,0.84994952,94749.0,94748.0,0.2740756]
[1746431326408,0.91578952,94749.0,94748.0,0.2740756]
[1746431329316,0.47427612,94749.0,94748.0,0.2740756]
[1746431329506,0.24228194,94760.0,94759.0,0.2110511]
[1746431330113,0.24228194,94760.0,94759.0,0.3310511]
[1746431330412,0.24228194,94760.0,94759.0,0.3932511]
[1746431331004,0.24428194,94760.0,94759.0,0.40360158]
[1746431331400,0.24228194,94760.0,94759.0,0.40360158]
[1746431331607,0.24228194,94760.0,94759.0,0.40460158]
[1746431331904,0.24528194,94760.0,94759.0,0.40460158]
[1746431332105,0.24528194,94760.0,94759.0,0.2742511]
[1746431332614,0.33504215,94761.0,94760.0,0.2110489]
[1746431332615,0.06584,94761.0,94760.0,0.2110489]
[1746431332809,0.06584,94761.0,94760.0,0.2746489]
[1746431333911,0.07366738,94761.0,94760.0,0.2746489]
[1746431335016,0.43446738,94761.0,94760.0,0.2746489]
[1746431337914,0.36862738,94761.0,94760.0,0.2746489]
[1746431338120,0.00782738,94761.0,94760.0,0.2746489]
[1746431338314,0.0617,94769.0,94760.0,0.2746489]
[1746431338315,0.0617,94769.0,94768.0,0.2110311]
[1746431339011,0.1672292,94769.0,94768.0,0.2110311]
[1746431339309,0.1672292,94769.0,94768.0,0.2414311]
[1746431340120,0.2872292,94769.0,94768.0,0.2414311]
[1746431340313,0.6480292,94769.0,94768.0,0.2414311]
[1746431340819,0.6490292,94769.0,94768.0,0.2414311]
[1746431341720,0.6500292,94769.0,94768.0,0.2414311]
[1746431342823,0.65810274,94769.0,94768.0,0.2414311]
[1746431346926,0.52097354,94769.0,94768.0,0.2414311]
[1746431347122,0.40097354,94769.0,94768.0,0.2414311]
[1746431348824,0.04017354,94769.0,94768.0,0.2414311]
[1746431349227,0.07117354,94769.0,94768.0,0.2414311]
[1746431356427,0.01007354,94769.0,94768.0,0.2414311]
[1746431357134,0.01007354,94769.0,94768.0,0.3614311]
[1746431357931,0.30277632,94775.0,94774.0,0.2110177]
[1746431358433,0.05752367,94780.0,94774.0,0.2110177]
[1746431358434,0.0658,94784.0,94780.0,0.2110044]
[1746431358734,0.0325,94789.0,94780.0,0.2110044]
[1746431358931,0.0325,94789.0,94788.0,0.2109866]
[1746431359828,0.0325,94789.0,94788.0,0.2735866]
[1746431362035,0.0634,94789.0,94788.0,0.2735866]
[1746431362740,0.07112579,94789.0,94788.0,0.2735866]
[1746431364331,0.07112579,94789.0,94788.0,0.2427866]
[1746431364532,0.07212579,94789.0,94788.0,0.2427866]
[1746431369134,0.07112579,94789.0,94788.0,0.2427866]
[1746431369345,0.07212579,94789.0,94788.0,0.2427866]
[1746431371934,0.07112579,94789.0,94788.0,0.2427866]
[1746431372136,0.07212579,94789.0,94788.0,0.2427866]
[1746431373734,0.07112579,94789.0,94788.0,0.2427866]
[1746431373934,0.07212579,94789.0,94788.0,0.2427866]
[1746431375443,0.07112579,94789.0,94788.0,0.2427866]
[1746431375642,0.07212579,94789.0,94788.0,0.2427866]
[1746431378143,0.43292579,94789.0,94788.0,0.2427866]
[1746431378944,0.36952579,94789.0,94788.0,0.2427866]
[1746431380143,0.36852579,94789.0,94788.0,0.2427866]
[1746431380345,0.36952579,94789.0,94788.0,0.2427866]
[1746431380943,0.36852579,94789.0,94788.0,0.2427866]
[1746431386248,0.00772579,94789.0,94788.0,0.2427866]
[1746431386442,0.0302,94790.0,94789.0,0.2109843]
[1746431386947,0.0302,94790.0,94789.0,0.2415843]
[1746431387638,0.0312,94790.0,94789.0,0.2415843]
[1746431390352,0.0624,94790.0,94789.0,0.2415843]
[1746431390653,0.0704706,94790.0,94789.0,0.2415843]
[1746431392344,0.0704706,94790.0,94789.0,0.2109843]
[1746431400151,0.60694961,94790.0,94789.0,0.2109843]
[1746431400646,0.50694961,94790.0,94789.0,0.2109843]
[1746431400847,0.29596751,94790.0,94789.0,0.2109843]
[1746431402059,0.50694961,94790.0,94789.0,0.2109843]
[1746431403259,0.57266961,94790.0,94789.0,0.2109843]
[1746431408156,0.065306,94790.0,94789.0,0.92728029]
[1746431408364,0.00933554,94800.0,94799.0,0.2109621]
[1746431408560,0.0015,94800.0,94799.0,0.5717621]
[1746431408757,0.0015,94800.0,94799.0,2.0717621]
[1746431409055,0.0015,94800.0,94799.0,0.7885621]
[1746431409464,0.0045,94800.0,94799.0,0.7885621]
[1746431409667,0.0045,94800.0,94799.0,2.2885621]
[1746431409965,0.0045,94800.0,94799.0,2.2905621]
[1746431410263,0.0045,94800.0,94799.0,2.1705621]
[1746431410961,0.0015,94800.0,94799.0,2.1725621]
[1746431414665,0.0015,94800.0,94799.0,2.1705621]
[1746431414854,0.0015,94800.0,94799.0,2.1725621]
[1746431417467,0.0015,94800.0,94799.0,2.1705621]
[1746431417674,0.0015,94800.0,94799.0,2.1725621]
[1746431418263,0.0015,94800.0,94799.0,2.1705621]
[1746431418457,0.0015,94800.0,94799.0,2.1725621]
[1746431418657,0.0015,94800.0,94799.0,2.1705621]
[1746431418859,0.0015,94800.0,94799.0,2.1725621]
[1746431422073,0.0015,94800.0,94799.0,2.1705621]
[1746431422273,0.0015,94800.0,94799.0,2.1725621]
[1746431423873,0.0015,94800.0,94799.0,1.8117621]
[1746431424062,0.0015,94800.0,94799.0,2.1725621]
[1746431427071,1e-07,94800.0,94799.0,2.1725621]
[1746431427268,1e-07,94800.0,94799.0,2.3437261]
[1746431428274,1e-07,94800.0,94799.0,2.4637261]
[1746431429387,1e-07,94800.0,94799.0,2.3980461]
[1746431429579,1e-07,94800.0,94799.0,2.4637261]
[1746431430078,1e-07,94800.0,94799.0,2.3437261]
[1746431432384,1e-07,94800.0,94799.0,2.2780461]
[1746431432680,1e-07,94800.0,94799.0,2.3437261]
[1746431437784,1e-07,94800.0,94799.0,1.9829261]
[1746431437985,1e-07,94800.0,94799.0,2.3437261]
[1746431439782,1e-07,94800.0,94799.0,2.132764]
[1746431441083,1e-07,94800.0,94799.0,2.02728]
[1746431442478,0.0307001,94800.0,94799.0,2.02728]
[1746431443387,0.0611001,94800.0,94799.0,2.02728]
[1746431443880,1e-07,94800.0,94799.0,2.02728]
[1746431446086,1e-07,94800.0,94799.0,2.132764]
[1746431446386,1e-07,94800.0,94799.0,2.101264]
[1746431448186,1e-07,94800.0,94799.0,1.99578]
[1746431448380,1e-07,94800.0,94799.0,1.63498]
[1746431448581,1e-07,94800.0,94799.0,2.35658]
[1746431449091,1e-07,94800.0,94799.0,1.63498]
[1746431449290,1e-07,94800.0,94799.0,2.35658]
[1746431452183,1e-07,94800.0,94799.0,2.2909]
[1746431452383,1e-07,94800.0,94799.0,1.8648]
[1746431452986,1e-07,94800.0,94799.0,0.3648]
[1746431453191,0.1200001,94800.0,94799.0,0.3648]
[1746431453790,0.1200001,94800.0,94799.0,0.004]
[1746431454685,0.1200001,94800.0,94799.0,0.002]
[1746431454892,0.1200001,94800.0,94799.0,0.004]
[1746431455790,0.1200001,94800.0,94799.0,0.002]
[1746431455991,0.1200001,94800.0,94799.0,0.003]
[1746431456196,0.1200001,94800.0,94799.0,0.002]
[1746431456993,0.1200001,94800.0,94799.0,0.001]
[1746431458997,0.1200001,94800.0,94799.0,0.002]
[1746431460688,0.1200001,94800.0,94793.0,0.0308]
[1746431460887,0.061,94799.0,94793.0,0.0308]
[1746431461095,0.181,94799.0,94793.0,0.0308]
[1746431461996,0.181,94799.0,94793.0,0.0348]
[1746431464000,0.181,94799.0,94793.0,0.0338]
[1746431468116,0.061,94799.0,94793.0,0.0338]
[1746431469017,0.061,94799.0,94794.0,0.3608]
[1746431469215,0.181,94799.0,94794.0,0.3608]
[1746431469408,0.181,94799.0,94795.0,0.0301]
[1746431471011,0.181,94799.0,94795.0,0.0321]
[1746431471818,0.181,94799.0,94795.0,0.0331]
[1746431478213,0.061,94799.0,94795.0,0.0331]
[1746431479221,0.181,94799.0,94795.0,0.0331]
[1746431481220,0.061,94799.0,94795.0,0.0331]
[1746431488226,0.181,94799.0,94795.0,0.0331]
[1746431489417,0.181,94799.0,94795.0,0.3638]
[1746431489626,0.181,94799.0,94795.0,0.003]
[1746431489813,0.3608,94796.0,94770.0,0.0318]
[1746431490015,0.3608,94781.0,94770.0,0.0325]
[1746431490218,0.0633,94780.0,94778.0,1.5]
[1746431490926,0.0593,94780.0,94778.0,1.51033958]
[1746431491124,0.1793,94780.0,94779.0,0.005]
[1746431491621,0.1793,94780.0,94778.0,1.51033958]
[1746431491830,0.1793,94780.0,94778.0,1.52033958]
[1746431492026,0.1793,94780.0,94778.0,1.51]
[1746431492529,0.1793,94780.0,94779.0,0.004]
[1746431493234,0.1793,94780.0,94779.0,0.009]
[1746431493527,0.1793,94780.0,94779.0,0.0423]
[1746431494028,0.1793,94780.0,94779.0,0.0383]
[1746431494827,0.1793,94780.0,94779.0,0.0403]
[1746431501331,1e-07,94800.0,94779.0,0.4011]
[1746431501521,0.0314,94795.0,94780.0,0.09012367]
[1746431501721,0.0329,94794.0,94780.0,0.09012367]
[1746431501928,0.0329,94794.0,94793.0,0.3608]
[1746431502133,0.1529,94794.0,94793.0,0.3608]
[1746431503930,0.1529,94794.0,94793.0,0.3628]
[1746431505530,0.1841,94794.0,94793.0,0.3628]
[1746431506128,0.1841,94794.0,94793.0,0.002]
[1746431506428,0.1841,94794.0,94793.0,0.3628]
[1746431511534,0.1841,94794.0,94793.0,0.002]
[1746431511735,0.1841,94794.0,94793.0,0.3628]
[1746431513735,0.1512,94794.0,94793.0,0.3628]
[1746431524845,0.12,94794.0,94793.0,0.3628]
[1746431525043,0.05633259,94794.0,94793.0,0.468292]
[1746431525244,1e-07,94800.0,94793.0,2.088292]
[1746431525440,1e-07,94800.0,94794.0,0.0948]
[1746431525842,1e-07,94800.0,94794.0,0.200288]
[1746431526047,0.0301,94819.0,94799.0,0.3608]
[1746431526250,0.0301,94819.0,94800.0,0.0626]
[1746431526548,0.0301,94819.0,94800.0,0.233604]
[1746431526549,0.21488389,94809.0,94800.0,0.233604]
[1746431526747,0.21488389,94809.0,94805.0,1.5]
[1746431527154,0.21488389,94809.0,94805.0,1.60547999]
[1746431527651,0.003,94806.0,94805.0,1.60547999]
[1746431528755,0.003,94806.0,94805.0,1.96627999]
[1746431529251,0.004,94806.0,94805.0,1.96627999]
[1746431536960,0.004,94806.0,94805.0,2.32707999]
[1746431539054,0.004,94806.0,94805.0,2.2216]
[1746431539756,0.004,94806.0,94805.0,2.28704]
[1746431551162,0.124,94806.0,94805.0,2.28704]
[1746431553763,0.124,94806.0,94805.0,0.3608]
[1746431553957,0.374,94806.0,94805.0,0.3608]
[1746431554363,0.124,94806.0,94805.0,0.3608]
[1746431555368,0.124,94806.0,94805.0,0.3109]
[1746431556661,0.47948,94806.0,94805.0,0.3109]
[1746431556869,0.22948,94806.0,94805.0,0.3109]
[1746431558071,0.124,94806.0,94805.0,0.3109]
[1746431558969,0.94575911,94806.0,94786.0,0.00158241]
[1746431559270,0.05752367,94796.0,94787.0,0.3608]
[1746431559471,0.0968,94795.0,94787.0,0.3608]
[1746431560274,0.2168,94795.0,94787.0,0.3608]
[1746431560686,0.2168,94795.0,94788.0,0.0527466]
[1746431560889,0.2168,94795.0,94794.0,0.2109732]
[1746431561291,0.683092,94795.0,94794.0,0.2109732]
[1746431562190,0.683092,94795.0,94794.0,0.2119732]
[1746431564186,0.5776,94795.0,94794.0,0.2119732]
[1746431580704,0.5445,94795.0,94794.0,0.2119732]
[1746431592419,0.75938389,94795.0,94794.0,0.2119732]
[1746431593005,0.75938389,94795.0,94794.0,0.2427732]
[1746431593511,0.39858389,94795.0,94794.0,0.2427732]
[1746431596427,0.1837,94795.0,94794.0,0.2427732]
[1746431604827,0.1837,94795.0,94794.0,0.2119732]
[1746431618043,0.12,94795.0,94794.0,0.2119732]
[1746431618243,0.12,94795.0,94794.0,0.2440732]
[1746431619142,0.24174525,94800.0,94799.0,0.2109621]
[1746431619338,0.24174525,94800.0,94799.0,0.5717621]
[1746431619743,0.4128,94803.0,94802.0,0.2109554]
[1746431620249,0.5328,94803.0,94802.0,0.2109554]
[1746431620845,0.121,94803.0,94802.0,1.8164394]
[1746431621034,1e-07,94806.0,94805.0,0.2109487]
[1746431621439,0.20264605,94812.0,94811.0,0.2109354]
[1746431621645,0.15549475,94812.0,94811.0,0.5717354]
[1746431622346,0.15549475,94812.0,94811.0,0.6366354]
[1746431622547,0.15549475,94812.0,94811.0,2.1366354]
[1746431623845,0.15749475,94812.0,94811.0,2.1366354]
[1746431627050,0.002,94812.0,94811.0,2.1366354]
[1746431629151,0.122,94812.0,94811.0,2.1366354]
[1746431629353,0.122,94812.0,94811.0,2.4974354]
[1746431630948,0.122,94812.0,94811.0,2.1049354]
[1746431634555,0.122,94812.0,94811.0,1.7441354]
[1746431638558,0.122,94812.0,94811.0,1.7441354]
[1746431641752,0.1551,94812.0,94811.0,1.7441354]
[1746431642758,0.1541,94812.0,94811.0,1.7441354]
[1746431643060,0.1541,94812.0,94811.0,1.7451354]
[1746431643456,0.1531,94812.0,94811.0,1.7451354]
[1746431643662,0.1541,94812.0,94811.0,1.7451354]
[1746431644857,0.1541,94812.0,94811.0,1.7758354]
[1746431645557,0.1541,94812.0,94811.0,1.7748354]
[1746431645758,0.1541,94812.0,94811.0,1.7758354]
[1746431648159,0.1541,94812.0,94811.0,1.7748354]
[1746431648361,0.1541,94812.0,94811.0,1.7758354]
[1746431648562,0.1541,94812.0,94811.0,2.1366354]
[1746431649059,0.1531,94812.0,94811.0,2.1366354]
[1746431649262,0.1541,94812.0,94811.0,2.1366354]
[1746431649562,0.0325,94822.0,94821.0,0.2109131]
[1746431649763,0.0325,94822.0,94821.0,0.5717131]
[1746431650157,0.1525,94822.0,94821.0,2.0717131]
[1746431652268,0.1545,94822.0,94821.0,2.0717131]
[1746431654168,0.1535,94822.0,94821.0,2.0821102]
[1746431658572,0.15365861,94822.0,94821.0,2.0821102]
[1746431665584,0.15365861,94822.0,94821.0,2.1124102]
[1746431665987,0.15365861,94822.0,94821.0,0.2516102]
[1746431674495,0.15365861,94822.0,94821.0,0.2412131]
[1746431677703,0.15365861,94822.0,94821.0,0.25178645]
[1746431683910,0.15365861,94822.0,94821.0,0.2412131]
[1746431702024,0.15365861,94822.0,94821.0,0.2720131]
[1746431705823,0.15365861,94822.0,94821.0,0.2412131]
[1746431715734,0.63217262,94822.0,94799.0,0.0527402]
[1746431716036,0.3608,94807.0,94806.0,0.2636826]
[1746431716235,0.42592,94807.0,94806.0,0.2636826]
[1746431716425,0.06512,94807.0,94806.0,0.2636826]
[1746431716835,0.06512,94807.0,94806.0,0.2943826]
[1746431717338,0.18512,94807.0,94806.0,0.2943826]
[1746431718132,0.18512,94807.0,94806.0,0.2973826]
[1746431718435,0.18512,94807.0,94806.0,0.2983826]
[1746431718634,0.18512,94807.0,94806.0,0.2953826]
[1746431719839,0.18712,94807.0,94806.0,0.2943826]
[1746431752680,0.4024558,94807.0,94806.0,0.2943826]
[1746431760382,0.3373358,94807.0,94806.0,0.2943826]
[1746431767784,0.3373358,94807.0,94806.0,0.6551826]
[1746431768288,0.0924134,94807.0,94806.0,2.1551826]
[1746431768491,0.0531398,94807.0,94806.0,2.1551826]
[1746431768788,0.24163112,94815.0,94814.0,0.2109287]
[1746431768988,0.201725,94822.0,94821.0,0.2109131]
[1746431769991,0.201725,94822.0,94821.0,0.2748131]
[1746431770185,0.321725,94822.0,94821.0,0.2748131]
[1746431770790,0.326725,94822.0,94821.0,0.2748131]
[1746431774093,0.326725,94822.0,94821.0,0.2433131]
[1746431780298,0.426725,94822.0,94821.0,0.2109131]
[1746431780493,0.74309721,94822.0,94821.0,0.2109131]
[1746431780692,0.53218631,94822.0,94821.0,0.2109131]
[1746431781403,0.77369721,94822.0,94821.0,0.2109131]
[1746431781903,0.56278631,94822.0,94821.0,0.2109131]
[1746431786100,0.82358631,94822.0,94821.0,0.2109131]
[1746431786800,0.82358631,94822.0,94821.0,0.2411131]
[1746431796207,0.83160652,94822.0,94821.0,0.2411131]
[1746431796611,0.47080652,94822.0,94821.0,0.2411131]
[1746431799008,0.78171742,94822.0,94821.0,0.2411131]
[1746431799214,0.2109581,94805.0,94804.0,0.2109458]
[1746431799407,0.0527427,94796.0,94782.0,0.36238257]
[1746431799609,0.3608,94794.0,94791.0,0.0527445]
[1746431799805,0.0309,94793.0,94792.0,0.2430777]
[1746431800006,0.061,94793.0,94792.0,0.2430777]
[1746431800207,0.181,94793.0,94792.0,0.2430777]
[1746431801310,0.181,94793.0,94792.0,0.2440777]
[1746431801812,0.181,94793.0,94792.0,0.2460777]
[1746431802314,0.181,94793.0,94792.0,0.2440777]
[1746431802516,0.181,94793.0,94792.0,0.2460777]
[1746431804914,0.28649357,94793.0,94792.0,0.2460777]
[1746431807515,0.49746897,94793.0,94792.0,0.2460777]
[1746431807714,0.28649357,94793.0,94792.0,0.2460777]
[1746431813817,0.49746897,94793.0,94792.0,0.2460777]
[1746431817821,0.28649357,94793.0,94792.0,0.2460777]
[1746431818423,0.49746897,94793.0,94792.0,0.2460777]
[1746431820609,0.25639357,94793.0,94792.0,0.2460777]
[1746431820814,0.42671857,94793.0,94792.0,0.2764777]
[1746431821516,0.290325,94793.0,94792.0,0.2764777]
[1746431822220,0.170325,94793.0,94792.0,0.2764777]
[1746431826717,0.05752367,94802.0,94801.0,0.2109576]
[1746431827016,0.06484,94804.0,94803.0,0.2109532]
[1746431827317,0.21674,94804.0,94803.0,0.2109532]
[1746431827822,0.21674,94804.0,94803.0,0.2419532]
[1746431828015,0.24734,94804.0,94803.0,0.2419532]
[1746431829623,0.24834,94804.0,94803.0,0.2419532]
[1746431833736,0.18584,94804.0,94803.0,0.2419532]
[1746431834028,0.18584,94804.0,94803.0,0.2746532]
[1746431837331,0.121,94804.0,94803.0,0.2746532]
[1746431837524,0.0907081,94804.0,94803.0,0.38013319]
[1746431837725,0.06484,94818.0,94803.0,0.38013319]
[1746431837726,0.06484,94818.0,94817.0,0.210922]
[1746431838432,0.06484,94818.0,94817.0,0.275222]
[1746431839330,0.06884,94818.0,94817.0,0.275222]
[1746431839536,0.06884,94818.0,94817.0,0.28569245]
[1746431841828,0.004,94818.0,94817.0,0.28569245]
[1746431842737,0.004,94818.0,94817.0,0.275222]
[1746431843535,0.004,94818.0,94817.0,0.28570092]
[1746431843736,0.004,94818.0,94817.0,0.275222]
[1746431846540,0.004,94818.0,94817.0,0.28596572]
[1746431850140,0.124,94818.0,94817.0,0.28596572]
[1746431851240,0.004,94818.0,94817.0,0.28596572]
[1746431853938,0.0281661,94818.0,94817.0,0.28596572]
[1746431854140,0.1481661,94818.0,94817.0,0.28596572]
[1746431854943,0.1481661,94818.0,94817.0,0.25346572]
[1746431856033,0.1799661,94818.0,94817.0,0.25346572]
[1746431856440,0.1799661,94818.0,94813.0,0.4135322]
[1746431856638,0.2755256,94817.0,94816.0,0.2109243]
[1746431856945,0.4254,94817.0,94816.0,0.2109243]
[1746431857132,0.5772,94817.0,94816.0,0.2109243]
[1746431857334,0.68266687,94817.0,94816.0,0.2109243]
[1746431857535,0.89358887,94817.0,94816.0,0.2109243]
[1746431858546,0.89758887,94817.0,94816.0,0.2109243]
[1746431858938,1.06791387,94817.0,94816.0,0.2109243]
[1746431860651,1.16791387,94817.0,94816.0,0.2109243]
[1746431863146,1.23267387,94817.0,94816.0,0.2109243]
[1746431864451,1.06234887,94817.0,94816.0,0.2109243]
[1746431867946,0.71992687,94817.0,94816.0,0.2412243]
[1746431869652,0.93084887,94817.0,94816.0,0.2412243]
[1746431872155,0.2109514,94808.0,94807.0,0.2636666]
[1746431872452,0.2109385,94810.0,94809.0,0.2109376]
[1746431872851,0.2759385,94810.0,94809.0,0.2109376]
[1746431873050,0.3959385,94810.0,94809.0,0.2109376]
[1746431873464,0.4283385,94810.0,94809.0,0.2416376]
[1746431875060,0.4303385,94810.0,94809.0,0.2416376]
[1746431877852,0.7911385,94810.0,94809.0,0.2416376]
[1746431881352,0.7911385,94810.0,94809.0,0.2727376]
[1746431881549,0.7586385,94810.0,94809.0,0.2727376]
[1746431884364,0.4828,94810.0,94809.0,0.2727376]
[1746431884570,0.4828,94810.0,94809.0,0.3048376]
[1746431889468,0.122,94810.0,94809.0,0.3048376]
[1746431890168,0.002,94810.0,94809.0,0.3048376]
[1746431910181,0.122,94810.0,94809.0,0.3048376]
[1746431910979,0.4808,94810.0,94796.0,0.25493471]
[1746431911179,0.0657,94809.0,94808.0,0.2109421]
[1746431914667,0.0657,94809.0,94808.0,0.2119421]
[1746431914870,0.0657,94809.0,94808.0,0.2445421]
[1746431915273,0.0657,94809.0,94808.0,0.2435421]
[1746431915473,0.0657,94809.0,94808.0,0.2455421]
[1746431919089,0.1857,94809.0,94808.0,0.2455421]
[1746431920191,0.0657,94809.0,94808.0,0.2455421]
[1746431921490,0.0657,94809.0,94808.0,0.2435421]
[1746431921695,0.0657,94809.0,94808.0,0.2455421]
[1746431923691,0.0657,94809.0,94808.0,0.2445421]
[1746431926495,0.0657,94809.0,94808.0,0.2435421]
[1746431934097,0.0326,94809.0,94808.0,0.2435421]
[1746431934294,0.0326,94809.0,94808.0,0.2752421]
[1746431934602,0.0326,94809.0,94808.0,0.2435421]
[1746431934800,0.0647,94809.0,94808.0,0.2435421]
[1746431937098,0.0326,94809.0,94808.0,0.2738421]
[1746431939701,0.0326,94809.0,94808.0,0.2435421]
[1746431939905,0.0654,94809.0,94808.0,0.2435421]
[1746431946807,0.0975,94809.0,94808.0,0.2435421]
[1746431948408,0.0975,94809.0,94808.0,1.7435421]
[1746431950209,0.0654,94809.0,94808.0,1.7435421]
[1746431974124,0.0326,94809.0,94808.0,1.7435421]
[1746431981026,0.0326,94809.0,94808.0,0.2435421]
[1746431981932,0.0241661,94818.0,94810.0,0.0527339]
[1746431982132,0.0304,94823.0,94822.0,0.2109109]
[1746431983231,0.3608,94833.0,94820.0,0.0527284]
[1746431983232,0.3608,94833.0,94823.0,0.2109087]
[1746431983529,0.3608,94833.0,94823.0,1.7109087]
[1746431983732,0.3320874,94824.0,94823.0,1.7109087]
[1746431984123,0.3320874,94824.0,94823.0,1.8309087]
[1746431984525,0.00802493,94824.0,94823.0,1.8329087]
[1746431984730,0.3608,94832.0,94831.0,0.2108909]
[1746431986524,0.392,94832.0,94831.0,0.2108909]
[1746431987136,0.512,94832.0,94831.0,0.2108909]
[1746431987434,0.512,94832.0,94831.0,0.2118909]
[1746431987636,0.512,94832.0,94831.0,0.2128909]
[1746431987836,0.512,94832.0,94831.0,0.2118909]
[1746431988236,0.51994103,94832.0,94831.0,0.2118909]
[1746431989336,0.39994103,94832.0,94831.0,0.2118909]
[1746431989537,0.39994103,94832.0,94831.0,0.2108909]
[1746431992441,0.40094103,94832.0,94831.0,0.2108909]
[1746431993041,0.39994103,94832.0,94831.0,0.2108909]
[1746431995937,0.40094103,94832.0,94831.0,0.2108909]
[1746431996146,0.36974103,94832.0,94831.0,0.2108909]
[1746431996335,0.40104103,94832.0,94831.0,0.2108909]
[1746431996936,0.43254103,94832.0,94831.0,0.2108909]
[1746432000848,0.40124103,94832.0,94831.0,0.2108909]
[1746432001052,0.43434103,94832.0,94831.0,0.2108909]
[1746432005249,0.53979303,94832.0,94786.0,0.3608]
[1746432005450,0.3608,94802.0,94801.0,0.2109576]
[1746432005648,0.3608,94802.0,94801.0,0.22956909]
[1746432006759,0.3608,94802.0,94801.0,0.23556909]
[1746432007056,0.5717554,94802.0,94801.0,0.006]
[1746432007245,0.2109641,94799.0,94798.0,0.2109619]
[1746432007557,0.210982,94791.0,94782.0,0.00158257]
[1746432007859,0.3608,94783.0,94782.0,0.00158257]
[1746432008154,0.4758,94783.0,94782.0,0.23162616]
[1746432008357,0.8993,94783.0,94782.0,0.21258247]
[1746432008558,0.8993,94783.0,94782.0,0.00158257]
[1746432008755,1.2128024,94783.0,94782.0,0.00458257]
[1746432009148,0.2110084,94779.0,94778.0,0.2110088]
[1746432009345,0.06456,94781.0,94753.0,0.052766]
[1746432009546,0.3608,94754.0,94753.0,0.23011733]
[1746432009750,0.3578,94754.0,94753.0,0.2110645]
[1746432010157,0.4778,94754.0,94753.0,0.2110645]
[1746432010352,0.58330916,94754.0,94753.0,0.2110645]
[1746432010553,0.58330916,94754.0,94753.0,0.2190645]
[1746432011248,0.58330916,94754.0,94753.0,0.2250645]
[1746432012057,0.58330916,94754.0,94753.0,0.2240645]
[1746432012264,0.12,94754.0,94753.0,0.2240645]
[1746432012455,0.12,94754.0,94753.0,0.2160645]
[1746432012656,0.12,94754.0,94753.0,0.2220645]
[1746432013155,0.0314,94760.0,94759.0,0.2110511]
[1746432014061,0.1514,94760.0,94759.0,0.2110511]
[1746432014462,0.1514,94760.0,94759.0,0.2150511]
[1746432015264,0.1514,94760.0,94759.0,0.2200511]
[1746432015651,0.12,94760.0,94759.0,0.2200511]
[1746432016159,0.3608,94761.0,94760.0,0.2110489]
[1746432016361,0.3608,94761.0,94760.0,0.2438489]
[1746432017359,0.3608,94761.0,94760.0,0.2478489]
[1746432017557,0.3608,94761.0,94760.0,0.2810489]
[1746432018146,0.3608,94761.0,94760.0,0.2860489]
[1746432018755,0.3608,94775.0,94774.0,0.2110177]
[1746432019946,0.46631361,94775.0,94774.0,0.23048724]
[1746432020151,0.58631361,94775.0,94774.0,0.29378724]
[1746432020564,0.58631361,94775.0,94774.0,0.29478724]
[1746432021156,0.58631361,94775.0,94774.0,0.2773177]
[1746432024263,0.58631361,94775.0,94774.0,0.29679677]
[1746432024760,0.22551361,94775.0,94774.0,0.29679677]
[1746432025672,2e-08,94775.0,94774.0,0.40230877]
[1746432026167,0.0315,94792.0,94791.0,0.2109799]
[1746432027255,0.0335,94792.0,94791.0,0.2109799]
[1746432027456,0.04144624,94792.0,94791.0,0.2109799]
[1746432027969,0.04344624,94792.0,94791.0,0.2109799]
[1746432034371,0.40424624,94792.0,94791.0,0.2109799]
[1746432035666,0.37274624,94792.0,94791.0,0.2109799]
[1746432036369,0.40574624,94792.0,94791.0,0.2423799]
[1746432040165,0.001,94806.0,94799.0,0.2109621]
[1746432040772,0.0322,94805.0,94799.0,0.2109621]
[1746432040969,0.001,94806.0,94799.0,0.2732621]
[1746432041167,0.001,94806.0,94799.0,0.3932621]
[1746432041365,0.0322,94805.0,94799.0,0.3932621]
[1746432041971,0.0045,94800.0,94799.0,0.3932621]
[1746432042475,0.0075,94800.0,94799.0,0.3932621]
[1746432044177,0.0075,94800.0,94799.0,0.2732621]
[1746432048182,0.0075,94800.0,94799.0,0.3932621]
[1746432049175,0.0075,94800.0,94799.0,0.2732621]
[1746432051883,0.24166028,94821.0,94820.0,0.2109154]
[1746432052179,0.24166028,94821.0,94820.0,0.3309154]
[1746432052790,0.0661,94829.0,94828.0,0.2108976]
[1746432053981,0.0328,94829.0,94828.0,0.2108976]
[1746432054784,0.0358,94829.0,94828.0,0.2108976]
[1746432055083,0.0388,94829.0,94828.0,0.2108976]
[1746432057992,0.0388,94829.0,94828.0,0.2428976]
[1746432058189,0.3608,94830.0,94829.0,0.2108954]
[1746432058394,0.3608,94830.0,94829.0,0.3063954]
[1746432059386,0.3277237,94830.0,94829.0,0.3063954]
[1746432059589,0.0633,94834.0,94833.0,0.2108865]
[1746432060796,0.0319,94834.0,94833.0,0.2108865]